Cogmind - Beta 16.1 @@@ ROGUE MODE // 2026.04.23 @ 01:15:11 Player: souux Result: Destroyed by L-31 Rogue with Katana Performance ------------- Evolutions (0) 0 Regions Visited (4) 800 Robots Destroyed (29) 145 Value Destroyed (642) 642 Prototype IDs (25) 500 Alien Tech Used (0) 0 Bonus (300) 300 TOTAL SCORE: 2387 Bonus ------- Aligned with FarCom 300 Cogmind --------- Core Integrity 0/250 Matter 280/300 Energy 80/100 System Corruption 3% Temperature Cool (0) Movement Rolling (140) Ox4 Location -9/Mines Parts ------- > --- POWER (1) -------- (None) > --- PROPULSION (2) --- Wheel Wheel > --- UTILITY (2) ------ Huge Storage Unit Light Armor Plating > --- WEAPON (2) ------- Beam Cannon Rocket Launcher > --- INVENTORY (25) --- Light Treads Light Treads Aluminum Leg Aluminum Leg Combat Airjet Improved Heat Sink High-capacity Battery (250) High-capacity Matter Pod (200) Structural Scanner Seismic Detector Medium Laser Medium Laser Particle Gun Beam Cannon Beam Cannon YOLO Cannon Light Assault Rifle Peak State ------------ > --- POWER ------------ Light Ion Engine > --- PROPULSION ------- Wheel Wheel > --- UTILITY ---------- Improved Heat Sink Huge Storage Unit > --- WEAPON ----------- Beam Cannon Beam Cannon > --- INVENTORY -------- Light Treads Light Treads Aluminum Leg Aluminum Leg Combat Airjet Large Matter Pod Structural Scanner Seismic Detector Light Armor Plating Medium Laser Medium Laser Particle Gun Beam Cannon Beam Cannon YOLO Cannon Light Assault Rifle Rocket Launcher [Rating: 13] Favorites ----------- Power Ion Engine Engine Ion Engine Propulsion Light Treads Treads Light Treads Wheel Wheel Utility Huge Storage Unit Device Improved Heat Sink Storage Huge Storage Unit Protection Light Armor Plating Weapon Beam Cannon Energy Gun Medium Laser Energy Cannon Beam Cannon Ballistic Gun Light Assault Rifle Launcher Rocket Launcher Build | -11 -10 -10 -10 -9 ------- Run | Yrd Mat Min Exi Min Slots Evolved . | . . . . . Power . | . . . . . Propulsion . | . . . . . Utility . | . . . . . Weapon . | . . . . . Parts Attached 27 | 8 12 6 1 . Power 4 | 1 2 1 . . Engine 4 | 1 2 1 . . Core . | . . . . . Reactor . | . . . . . Propulsion 6 | 3 3 . . . Treads 3 | . 3 . . . Leg . | . . . . . Wheel 3 | 3 . . . . Hover . | . . . . . Flight . | . . . . . Utility 8 | 2 4 1 1 . Device 3 | 1 1 1 . . Storage 4 | 1 2 . 1 . Processor . | . . . . . Hackware . | . . . . . Protection 1 | . 1 . . . Artifact . | . . . . . Weapon 9 | 2 3 4 . . Energy Gun 3 | 1 1 1 . . Energy Cannon 2 | . 1 1 . . Ballistic Gun 2 | 1 . 1 . . Ballistic Cannon . | . . . . . Launcher 2 | . 1 1 . . Special Weapon . | . . . . . Impact Weapon . | . . . . . Slashing Weapon . | . . . . . Piercing Weapon . | . . . . . Special Melee Weapon . | . . . . . Unidentified Prototypes . | . . . . . Parts Lost 6 | . 1 3 . 2 Power 3 | . 1 1 . 1 Propulsion 1 | . . 1 . . Utility . | . . . . . Weapon 2 | . . 1 . 1 Highest Loss Streak 2 | . 1 2 . 2 To Critical Strikes . | . . . . . Average Backups 14 | 4 12 16 16 18 Power . | . . . . . Propulsion 4 | 3 4 4 5 5 Utility 3 | . 3 4 4 5 Weapon 6 | . 4 7 7 8 Tool/Special . | . . . . . Unused Backups 10 | . 1 . 1 8 Power . | . . . . . Propulsion 3 | . . . . 3 Utility 4 | . 1 . 1 2 Weapon 3 | . . . . 3 Tool/Special . | . . . . . Average Slot Usage (%) 99 | . 99 100 98 98 Engine 13 | . 14 14 14 13 Treads 18 | . 20 24 . . Wheel 9 | . 7 3 28 28 Device 9 | . 13 7 9 10 Storage 14 | . 14 14 17 14 Protection 3 | . . 6 . 3 Energy Gun 11 | . 26 6 . . Energy Cannon 12 | . . 14 28 27 Ballistic Gun 3 | . 1 5 . . Peak Build Rating 13 | 7 11 11 13 11 Average Rating 9 | 6 10 9 11 10 On Entrance 7 | . 7 9 11 11 Avg Prop Armor Cover (%) 10 | . . 10 . . Naked Turns . | . . . . . Heaviest Build 94 | 14 94 94 90 92 Greatest Support 40 | 26 40 40 20 20 Greatest Overweight (x) 9 | 1 9 9 4 4 Average Overweight (x) 2 | . 1 4 4 4 Largest Inventory Capacity 25 | 8 25 25 25 25 Average Capacity 21 | 7 16 25 25 25 Most Carried 20 | 6 18 17 20 19 Average Carried 15 | 4 12 16 17 19 Final Capacity 25 | 8 25 25 25 25 Final Carried 19 | 6 17 16 19 18 Class Distribution -------------------- 100% | Mutant Dominant Class ---------------- Mutant | -10/Materials Mutant | -10/Mines Mutant | -10/Exiles Mutant | -9/Mines Resources | -11 -10 -10 -10 -9 ----------- Run | Yrd Mat Min Exi Min Matter Collected 1068 | 295 344 317 112 . Remotely . | . . . . . Salvage Created 1060 | 138 609 313 . . Parts 56 | 13 33 10 . . Haulers Intercepted 1 | . 1 . . . Recyclers Shooed 1 | 1 . . . . Parts Field Recycled . | . . . . . Retrieved Matter . | . . . . . Parts Self-Destructed . | . . . . . Prevented . | . . . . . Parts Restored . | . . . . . Kills | -11 -10 -10 -10 -9 ------- Run | Yrd Mat Min Exi Min Combat Hostiles Destroyed 15 | . 10 5 . . Guns 11 | . 9 2 . . Cannons 2 | . . 2 . . Classes Destroyed 9 | 2 4 3 . . Builder 1 | . . 1 . . Tunneler 8 | 5 3 . . . Hauler 1 | . 1 . . . Recycler 3 | 1 . 2 . . Operator 1 | . 1 . . . Watcher 2 | . 2 . . . Grunt 12 | . 10 2 . . Demolisher 1 | . . 1 . . Assembled 2 | . . 2 . . Best Kill Streak 6 | 6 2 3 . . Combat Bots Only 2 | . 2 2 . . Max Kills in Single Turn 1 | 1 1 1 . . Gunslinging . | . . . . . Exploded . | . . . . . Melee . | . . . . . Uniques/NPCs Destroyed . | . . . . . Combat | -11 -10 -10 -10 -9 -------- Run | Yrd Mat Min Exi Min Hostile Shots Fired 121 | . 63 51 . 7 Missed 26 | . 13 11 . 2 Hits 95 | . 50 40 . 5 Melee 6 | . . 4 . 2 Projectile 89 | . 50 36 . 3 Critical Strikes 1 | . . 1 . . Part Disruptions 2 | . . 2 . . Damage Taken 1288 | 1 623 570 . 94 Core 275 | . 129 106 . 40 Absorbed by Shields . | . . . . . Core Remaining (%) 100 | 100 . . . . Volleys Fired 104 | 15 67 22 . . Largest 2 | 2 2 2 . . Hottest 120 | 70 115 120 . . Shots Fired 204 | 30 131 43 . . Gun 173 | 30 131 12 . . Cannon 31 | . . 31 . . Launcher . | . . . . . Special . | . . . . . Kinetic 47 | 15 24 8 . . Thermal 157 | 15 107 35 . . Explosive . | . . . . . Electromagnetic . | . . . . . Robot Hit Streak 14 | 4 14 10 . . Robot Miss Streak 3 | 3 3 3 . . Penetration Max . | . . . . . Secondary Targets 4 | . 3 1 . . Max Gunslinging Chain 1 | . 1 1 . . Shots Hit Robots 132 | 18 90 24 . . Core Hits 54 | 11 32 11 . . Critical Kills 1 | . . 1 . . Critical Parts Destroyed . | . . . . . Critical Strikes 18 | 1 15 2 . . Burn 17 | 1 15 1 . . Meltdown 1 | . . 1 . . Melee Attacks . | . . . . . Impact . | . . . . . Slashing . | . . . . . Piercing . | . . . . . Sneak Attacks . | . . . . . Combat Hostiles . | . . . . . Follow-up Attacks . | . . . . . Damage Inflicted 1849 | 184 1204 461 . . Guns 1438 | 182 1195 61 . . Cannons 390 | . . 390 . . Explosions . | . . . . . Melee . | . . . . . Ramming 21 | 2 9 10 . . Kinetic 236 | 80 131 25 . . Thermal 1592 | 102 1064 426 . . Explosive . | . . . . . Electromagnetic . | . . . . . Impact . | . . . . . Slashing . | . . . . . Piercing . | . . . . . Highest Corruption 3 | . . 3 3 3 Average Corruption 3 | . . 3 3 3 Corruption Purged . | . . . . . Corruption Blocked . | . . . . . Effects 65 | . . 48 16 1 Message Errors 18 | . . 13 5 . Matter Fused 17 | . . 15 2 . Heat Flow Errors 10 | . . 7 2 1 Energy Discharges 9 | . . 6 3 . Data Loss (minor) 6 | . . 3 3 . Data Loss (major) 1 | . . 1 . . Misfires 3 | . . 3 . . Alerts 1 | . . . 1 . Overload Shots . | . . . . . Overflow Damage 4 | . . 4 . . Projectiles 4 | . . 4 . . Explosions . | . . . . . Melee . | . . . . . Knockbacks . | . . . . . Impact . | . . . . . Kinetic . | . . . . . Secondary . | . . . . . Self-Inflicted Damage 1 | 1 . . . . Shots . | . . . . . Rammed 7 | 1 2 4 . . Targets Rammed 7 | 1 2 4 . . Kicked . | . . . . . Crushed . | . . . . . Highest Temperature 391 | 130 212 391 214 170 Average Temperature 83 | 49 62 124 91 90 Received Heat Transfer 775 | . 351 412 . 12 Effects 1 | . . 1 . . Shutdowns 1 | . . 1 . . Siege Activations . | . . . . . Martial Activations . | . . . . . Shielding Activations . | . . . . . Robots Disrupted . | . . . . . Combat Hostiles . | . . . . . Robots Corrupted . | . . . . . Combat Hostiles . | . . . . . Parts Fried . | . . . . . Impact Corruptions . | . . . . . Robots Melted 2 | . 1 1 . . Combat Hostiles 2 | . 1 1 . . Parts Melted 11 | 3 7 1 . . Heat Transferred 5402 | 370 4033 999 . . Parts Sabotaged . | . . . . . Parts Stolen . | . . . . . Parts Stripped . | . . . . . Power Chain Reactions . | . . . . . Alert | -11 -10 -10 -10 -9 ------- Run | Yrd Mat Min Exi Min Maximum Alert Level . | . . . . . Low Security (%) 100 | 100 100 100 . 100 Level 1 . | . . . . . Level 2 . | . . . . . Level 3 . | . . . . . Level 4 . | . . . . . Level 5 . | . . . . . High Security . | . . . . . Max Security . | . . . . . Peak Influence 80 | 15 80 59 . . Initial 3 | . 3 . . . Average 7 | 4 13 3 . . Influence Increases 497 | 30 352 115 . . Destroy 0b10 Robot/C 260 | . 200 60 . . Destroy 0b10 Robot/NC 80 | 30 35 15 . . Destroy Leader 66 | . 56 10 . . Successful Hack 13 | . 13 . . . Select Force Hacks 30 | . 30 . . . Destroy Structure 3 | . 3 . . . Lose Combat Pursuer 45 | . 15 30 . . Influence Decreases 497 | 25 357 64 51 . Entered New Map 53 | . 2 . 51 . Time Decay 394 | 25 315 54 . . Lost Part 20 | . 10 10 . . Purge Threat 30 | . 30 . . . Squads Dispatched 4 | . 4 . . . Investigation 2 | . 2 . . . Extermination . | . . . . . Reinforcement 2 | . 2 . . . Assault . | . . . . . Garrison . | . . . . . Intercept . | . . . . . Searches Triggered . | . . . . . Construction Impeded . | . . . . . Haulers Reinforced . | . . . . . Active Scanning Responses . | . . . . . Cargo Convoy Interrupts . | . . . . . Stealth | -11 -10 -10 -10 -9 --------- Run | Yrd Mat Min Exi Min Distress Signals 1 | . 1 . . . Communications Jammed . | . . . . . Distress Signals . | . . . . . Times Spotted 37 | . 25 7 . 5 Peak Tracking Total 6 | . 3 2 . 6 Tactical Retreats 2 | . 1 1 . . Traps | -11 -10 -10 -10 -9 ------- Run | Yrd Mat Min Exi Min Traps Triggered 1 | . 1 . . . Indirectly . | . . . . . Trap Hack Attempts . | . . . . . Triggered . | . . . . . Disarmed . | . . . . . Reprogrammed . | . . . . . Reused . | . . . . . Traps Extracted . | . . . . . Installed . | . . . . . Triggered . | . . . . . Machines | -11 -10 -10 -10 -9 ---------- Run | Yrd Mat Min Exi Min Machines Disabled . | . . . . . Max in Single Turn . | . . . . . Machines Repaired . | . . . . . Machines Dismantled . | . . . . . Machines Sabotaged . | . . . . . Overloaded Fab Kills . | . . . . . Hacking | -11 -10 -10 -10 -9 --------- Run | Yrd Mat Min Exi Min Machines Accessed 9 | . 7 . 2 . Terminals 6 | . 6 . . . Fabricators . | . . . . . Repair Stations . | . . . . . Recycling Units 1 | . 1 . . . Scanalyzers . | . . . . . Garrison Access . | . . . . . Total Hacks 23 | . 20 . 3 . Successful 16 | . 13 . 3 . Failed 7 | . 7 . . . Catastrophic . | . . . . . Database Lockouts . | . . . . . Manual 17 | . 16 . 1 . Terminals 19 | . 19 . . . Fabricators . | . . . . . Repair Stations . | . . . . . Recycling Units 1 | . 1 . . . Scanalyzers . | . . . . . Garrison Access . | . . . . . Terminal Hacks 7 | . 4 . 3 . Record 2 | . . . 2 . Prototype ID Bank 1 | . 1 . . . Unreport Threat 2 | . 2 . . . Locate Traps 1 | . 1 . . . Proto ID Catalog 1 | . . . 1 . Fabricator Hacks . | . . . . . Repair Station Hacks . | . . . . . Recycling Unit Hacks . | . . . . . Scanalyzer . | . . . . . Garrison Access Hacks . | . . . . . Unauthorized Hacks 9 | . 9 . . . Terminals 8 | . 8 . . . Botnet 3 | . 3 . . . Skim 5 | . 5 . . . Fabricators . | . . . . . Repair Stations . | . . . . . Recycling Units 1 | . 1 . . . Tunnel 1 | . 1 . . . Scanalyzers . | . . . . . Garrison Access . | . . . . . Data Cores Recovered . | . . . . . Used . | . . . . . Hacking Detections 6 | . 6 . . . Full Trace Events . | . . . . . Feedback Events . | . . . . . Feedback Blocked . | . . . . . Robot Schematics Acquired . | . . . . . Robots Built . | . . . . . Authchips . | . . . . . Time . | . . . . . Total Robot Build Rating . | . . . . . Part Schematics Acquired . | . . . . . Parts Built . | . . . . . Authchips . | . . . . . Time . | . . . . . Total Part Build Rating . | . . . . . Part Studies Acquired . | . . . . . Parts Repaired . | . . . . . Time . | . . . . . Parts Recycled . | . . . . . Recycled Matter . | . . . . . Retrieved Matter . | . . . . . Retrieved Components . | . . . . . Parts Scanalyzed . | . . . . . Part Schematics Acquired . | . . . . . Parts Damaged . | . . . . . Bothacking | -11 -10 -10 -10 -9 ------------ Run | Yrd Mat Min Exi Min Used RIF Installer . | . . . . . Robots Hacked . | . . . . . Non-combat . | . . . . . Combat . | . . . . . Robot Hacks Applied . | . . . . . Relay Couplers Released . | . . . . . Fabnet Peak Effective % . | . . . . . Robots Rewired . | . . . . . Allies Hacked . | . . . . . Hacks Repelled . | . . . . . Allies | -11 -10 -10 -10 -9 -------- Run | Yrd Mat Min Exi Min Total Allies . | . . . . . Largest Group . | . . . . . Highest-Rated Group . | . . . . . Highest-Rated Ally . | . . . . . Total Orders . | . . . . . Ally Attacks . | . . . . . Total Damage . | . . . . . Kills . | . . . . . Allies Corrupted . | . . . . . Allies Melted . | . . . . . Intel | -11 -10 -10 -10 -9 ------- Run | Yrd Mat Min Exi Min Active Infowar (turns) 423 | 55 212 11 41 104 Seismic 423 | 55 212 11 41 104 Robot Analysis Total . | . . . . . Derelict Logs Recovered 2 | . . 2 . . Drone Launches . | . . . . . Drone Recoveries . | . . . . . Exploration | -11 -10 -10 -10 -9 ------------- Run | Yrd Mat Min Exi Min Turns Passed 5669 | 104 1818 2779 826 142 Spaces Moved 1774 | 51 815 350 458 100 Core 2 | 2 . . . . Treads 573 | . 468 105 . . Legs . | . . . . . Wheels 1199 | 49 347 245 458 100 Hover . | . . . . . Flight . | . . . . . Fastest Speed 50 | 50 80 140 140 140 Average Speed 152 | 82 141 207 140 140 Slowest Speed 320 | 95 215 320 140 140 Overloaded Moves . | . . . . . Propulsion Burnouts . | . . . . . Robots Hopped . | . . . . . Potential Cave-ins . | . . . . . Cave-ins Triggered . | . . . . . Exploration Rate (%) 52 | 4 96 51 78 33 Regions Visited 4 Branch Regions 3 Pre-discovered Areas 4 | . 2 1 1 . Known Exits Taken 1 | . . . 1 . Unknown Exits Taken 3 | 1 1 1 . . Scrap Searched . | . . . . . Spaces Dug . | . . . . . Terrain Destroyed . | . . . . . Melee . | . . . . . Projectile . | . . . . . AOE . | . . . . . Terrain Rammed . | . . . . . Walls Destroyed . | . . . . . Machines Disabled . | . . . . . Actions | -11 -10 -10 -10 -9 --------- Run | Yrd Mat Min Exi Min Total 4522 | 82 1349 2346 643 102 Wait 2554 | 1 431 1945 177 . Move 1771 | 51 814 349 457 100 Hop . | . . . . . Pick Up 25 | 6 13 3 3 . Fast Attach 10 | 8 1 . 1 . Attach 6 | . 1 3 1 1 Detach 1 | . . . 1 . Swap 35 | . 14 19 1 1 Drop 10 | 1 6 1 2 . Fire 104 | 15 67 22 . . Melee . | . . . . . Ram . | . . . . . Kick . | . . . . . Crush 6 | . 2 4 . . Escape Stasis . | . . . . . Rewire . | . . . . . Trap . | . . . . . Miscellaneous . | . . . . . Route ------- -11/Scrapyard -10/Materials (discovered 5 exits: [*Mat x3] / [*Min] / [*Sub]) -10/Mines (discovered 2 exits: [*Mat] / *Exi) -10/Exiles (discovered 2 exits: *Min x2) -9/Mines History --------- Turn | Location | Event 22 | -11/Scrapyard | Discovered new exit (range 14) 105 | -11/Scrapyard | Entered Materials 223 | -10/Materials | Discovered new exit (range 11) 309 | -10/Materials | Build established: Mutant 500 | -10/Materials | Discovered new exit (range 10) 569 | -10/Materials | Discovered new exit (range 16) 691 | -10/Materials | Core integrity fell below 50% 699 | -10/Materials | Discovered new exit (range 10) 911 | -10/Materials | Discovered new exit (range 11) 953 | -10/Materials | Learned location of 2 exits from Materials 1078 | -10/Materials | Learned location of 2 exits from Subcaves 1127 | -10/Materials | Learned location of 3 exits from Materials 1193 | -10/Materials | Loaded intel: 4 trap records 1230 | -10/Materials | Learned location of Mines (-9) 1275 | -10/Materials | Learned Materials emergency access door positions 1332 | -10/Materials | Learned location of 2 exits from Subcaves 1923 | -10/Materials | Entered Mines 1924 | -10/Mines | Assembled infested the area 2959 | -10/Mines | Learned location of Zion (-6) 3078 | -10/Mines | Received a Rocket Launcher from a helpful Derelict 4557 | -10/Mines | Core integrity fell below 20% 4639 | -10/Mines | Learned 2 Materials zone layouts 4659 | -10/Mines | Discovered new exit (range 10) 4695 | -10/Mines | Deemed a non-threat by the Exiles lab entrance 4697 | -10/Mines | Discovered new exit (range 5) 4702 | -10/Mines | Entered Exiles 4703 | -10/Exiles | Identified exit to Mines 4736 | -10/Exiles | Met 8R-AWN 4760 | -10/Exiles | Met EX-HEX 4852 | -10/Exiles | Met EX-DEC 4880 | -10/Exiles | Visited The Gauntlet 4988 | -10/Exiles | Met EX-BIN 5008 | -10/Exiles | Aligned with FarCom system 5009 | -10/Exiles | Given EX-Vault access code 5041 | -10/Exiles | Opened EX-Vault 5050 | -10/Exiles | Found YOLO Cannon 5079 | -10/Exiles | Warned to stay clear of 0b10 Research branches 5528 | -10/Exiles | Left Exiles lab with YOLO Cannon 5528 | -10/Exiles | Entered Mines 5670 | -9/Mines | Destroyed by L-31 Rogue with Katana Last Messages --------------- 05387_ System corrupted: Matter fused (-8). 05403_ OQM0N2VDA/BRL3PHYDTZA IIL51DGOOKVQE 05410_ Extracted 36 matter. 05411_ Acquired Hcp. Matter Pod. 05412_ Dropped Lrg. Matter Pod. 05413_ Extracted 36 matter. 05440_ A&QB9HGDZP28726NT 05660_ Beam Cannon destroyed. 05662_ Lgt. Ion Engine destroyed. Map ----- +----------------------------------------------------+ | ?????????????# ###????????????? | | ?????????????# #??????????????? | | ?????????????# #??????????????? | | ???###########"#??????????????? | | ???# "%#??????????????? | | ???# #########"#??????????????? | | ???# #???????# #??????????????? | | ???# #???????# #??????????????? | | ???# #???????# ??????????????? | | ???# #???????# ??????????????? | | ???# #???????###??????????????? | | ???# #????????????????????????? | | ???# #????????????????????????? | | ???# #????????????????????????? | | ???# ####?????????????????????? | | ??## ##????????????????????? | | ?## ##???????????????????? | | ?# ##??????????????????? | | ?# $ #??????????????????? | | ?## ## #??????????????????? | | ??###### g##??????????????????? | | ???????##g#???????????????????? | | ?????#### #???????????????????? | | ?????# #???????????????????? | | ?????#l####???????????????????? | | ?????#@#??????????????????????? | | ?????#s#??????????????????????? | | ?????s ??????????????????????? | | ????s ??????????????????????? | | ????""" ?????????????????????? | | ????""" ?????????????????????? | | ??? """ #????????????????????? | | ??? #????????????????????? | | ??# """ #????????????????????? | | ??#???? #????????????????????? | | ??????? #????????????????????? | | ??????? #????????????????????? | | ????????##????????????????????? | | ??????????????????????????????? | | ??????????????????????????????? | | ??????????????????????????????? | | | | | | | | | | | | | | | | | | | +----------------------------------------------------+ Best States ------------- Heat Dissipation 39 Energy Generation 10 Energy Capacity 375 Matter Stores 300 Matter Capacity 300 Sight Range 16 Terrain Scan Density 10 Armor Coverage 150 Evasion (%) 44 Recoil Reduction 2 Item Schematics ----------------- None Robot Schematics ------------------ None Fabricated ------------ Nothing Repaired ---------- Nothing Studied --------- None Alien Tech Used ----------------- None Achievements -------------- None Challenges ------------ None Game ------ Seed TargetWeldingObfuscator Manual? 0 Play Time 00:44:13 Cumulative 176.4 hours Start 2026.04.22 @ 23:47:32 End 2026.04.23 @ 01:15:11 Sessions 1 Manual Loads 0 Difficulty Rogue Special Mode None Game No. 123 Rogue 123 Adventurer 0 Explorer 0 Win Type - Total 3 Types 3/0/0/0/0/0/0/0/0/0 Lore% 50 Gallery% 51 Achievement% 42 Wizard Run 0 Options --------- Layout 2 ASCII 0 Keyboard 0 Movement Mouse Keybinds 0 Fullscreen 1 Font 24/Smallcaps Map View 50x44 Zoom Use 0% Tactical HUD 1 Map Filters NONE Filters NONE Steam 1 RUN: 6b333e25-7f8b-450b-8cb9-9ddc5e46cb3f